bitfinex/quotes_ETHUSD_20240717
["timestamp","ask_amount","ask_price","bid_price","bid_amount"]
[1721255407885,20.46780524,3414.4,3414.3,0.62155387]
[1721255408178,24.28588403,3414.4,3414.3,3.87e-06]
[1721255408351,26.81070267,3414.4,3414.3,3.87e-06]
[1721255408885,24.28588403,3414.4,3414.3,3.87e-06]
[1721255409062,26.81070267,3414.4,3414.3,3.87e-06]
[1721255409465,24.28588403,3414.4,3414.3,3.87e-06]
[1721255409659,26.81070267,3414.4,3414.3,3.87e-06]
[1721255410244,21.092259,3414.4,3414.3,3.87e-06]
[1721255410562,21.19845726,3414.4,3414.3,3.87e-06]
[1721255410742,21.19840187,3414.4,3414.3,3.87e-06]
[1721255411389,18.26963187,3414.4,3414.3,3.87e-06]
[1721255411589,23.65387989,3414.4,3414.3,3.87e-06]
[1721255411958,20.72510989,3414.4,3414.3,3.87e-06]
[1721255412797,23.65387989,3414.4,3414.3,3.87e-06]
[1721255413496,23.65326585,3414.4,3414.3,3.87e-06]
[1721255414358,21.52014594,3414.4,3414.3,3.87e-06]
[1721255415000,2.92972,3413.3,3412.8,2.3864]
[1721255415169,3.53902885,3413.3,3412.9,0.531662]
[1721255415560,2.92972,3413.3,3412.9,0.531662]
[1721255417461,2.9299,3413.1,3412.8,2.3864]
[1721255417861,2.93,3413.0,3412.8,2.3864]
[1721255420395,2.93005,3412.9,3412.3,2.4521]
[1721255420583,2.93027,3412.7,3412.3,2.4521]
[1721255420760,2.93027,3412.7,3412.4,0.24521]
[1721255421363,2.93027,3412.7,3412.3,2.4521]
[1721255421566,2.93041,3412.5,3412.3,2.4521]
[1721255422501,3.98248,3412.4,3411.7,2.2733]
[1721255422701,2.93057,3412.3,3411.7,2.2733]
[1721255422866,3.98267,3412.2,3411.7,2.2733]
[1721255424228,3.98254,3412.4,3411.7,2.793756]
[1721255424406,1.052,3412.4,3411.7,5.724776]
[1721255424570,2.93037,3412.6,3412.0,2.2545]
[1721255424924,2.9304,3412.5,3412.0,2.2545]
[1721255425811,3.53955885,3412.7,3412.0,2.2545]
[1721255425812,2.93037,3412.6,3412.0,2.2545]
[1721255425989,2.93037,3412.6,3412.1,0.518541]
[1721255426189,3.98237,3412.6,3412.1,0.518541]
[1721255427678,1.052,3412.6,3412.1,0.518541]
[1721255428417,2.93029,3412.7,3412.1,0.518541]
[1721255428718,2.93032,3412.6,3412.1,0.518541]
[1721255429227,3.98232,3412.6,3412.1,0.518541]
[1721255429799,2.93041,3412.5,3412.0,2.2545]
[1721255430111,1.052,3412.2,3412.0,2.2545]
[1721255430315,2.93075,3412.1,3411.6,2.3757]
[1721255430628,2.93075,3412.1,3411.6,2.906404]
[1721255431122,3.98267,3412.2,3411.6,2.906404]
[1721255431922,2.93077,3412.1,3411.6,2.906404]
[1721255434191,1.052,3412.2,3411.6,2.906404]
[1721255434430,10.24042,3412.5,3411.7,1.052]
[1721255434651,3.0,3412.4,3411.9,2.2687]
[1721255435717,3.98258,3412.3,3411.9,2.2687]
[1721255437151,2.93076,3412.1,3411.6,2.3203]
[1721255437447,2.93083,3412.0,3411.6,2.3203]
[1721255438540,0.60930885,3412.3,3411.6,2.3203]
[1721255438726,0.60930885,3412.3,3411.7,3.456244]
[1721255439049,6.53979885,3412.4,3411.7,3.456244]
[1721255439215,0.60930885,3412.3,3411.7,0.525164]
[1721255439540,0.60930885,3412.3,3411.7,3.456224]
[1721255439751,0.60930885,3412.3,3411.8,2.4735]
[1721255439911,0.60930885,3412.3,3411.9,0.5929724]
[1721255440111,6.53979885,3412.4,3411.9,0.5929724]
[1721255440529,0.60930885,3412.3,3411.9,0.5929724]
[1721255441246,0.60930885,3412.4,3412.0,2.2781]
[1721255441444,0.60930885,3412.4,3412.0,3.20392764]
[1721255442655,0.60930885,3412.3,3412.0,3.20392764]
[1721255444352,0.60930885,3412.2,3412.0,2.2781]
[1721255446449,0.60930885,3412.1,3411.7,2.93107]
[1721255446956,3.54006885,3412.1,3411.6,2.3372]
[1721255447122,1.052,3412.0,3411.6,2.3372]
[1721255447456,3.54006885,3412.1,3411.6,2.3372]
[1721255448053,0.60930885,3412.0,3411.6,2.3372]
[1721255448884,0.60930885,3411.9,3411.6,2.3372]
[1721255449240,0.60930885,3412.0,3411.6,2.3372]
[1721255449436,0.60930885,3411.9,3411.6,2.3372]
[1721255449638,0.60930885,3411.9,3411.7,0.632053]
[1721255451766,0.60930885,3411.8,3411.6,2.3372]
[1721255452640,0.91396328,3411.9,3411.1,2.3928]
[1721255452641,0.60930885,3411.7,3411.1,2.3928]
[1721255452975,0.61090159,3411.5,3411.1,2.3928]
[1721255453146,0.61090159,3411.3,3411.1,2.3928]
[1721255453474,0.61090159,3411.3,3410.8,2.3928]
[1721255453663,0.61090159,3411.2,3410.8,5.32464]
[1721255454484,0.61090159,3411.2,3409.9,3.088]
[1721255454485,1.052,3410.9,3410.3,2.3928]
[1721255454647,0.6105881,3410.9,3410.4,0.532511]
[1721255454864,0.6105881,3411.0,3410.4,0.532511]
[1721255455042,0.6105881,3411.0,3410.4,3.464651]
[1721255455237,0.6105881,3411.0,3410.5,2.93212]
[1721255455478,0.6105881,3411.0,3410.5,3.8110941]
[1721255456581,0.6105881,3411.1,3410.6,2.2831]
[1721255456741,0.6105881,3411.1,3410.9,2.93174]
[1721255457253,0.6105881,3411.2,3410.9,2.93174]
[1721255457580,0.6105881,3411.2,3410.9,3.74641]
[1721255458080,2.93167,3411.1,3410.1,2.9324]
[1721255458381,3.54253959,3410.7,3410.1,2.93246]
[1721255458549,0.61058959,3410.7,3410.1,2.93246]
[1721255458753,0.61058959,3410.7,3410.1,3.747286]
[1721255458951,3.54244959,3410.8,3410.1,3.747286]
[1721255459180,0.61058959,3410.8,3410.3,5.21537]
[1721255460845,0.61058959,3410.8,3410.3,2.2831]
[1721255461569,0.61058959,3410.8,3410.3,5.21539]
[1721255461894,0.61058959,3410.8,3410.3,6.1116636]
[1721255462181,0.61058959,3410.9,3410.3,3.1793736]
[1721255462384,0.61058959,3411.0,3410.6,2.93195]
[1721255462581,0.61058959,3411.1,3410.7,0.584185]
[1721255462781,0.61058959,3411.0,3410.7,3.516125]
[1721255462987,0.61058959,3411.1,3410.8,2.3599]
[1721255463355,0.61058959,3411.2,3410.8,2.3599]
[1721255463570,0.61058959,3411.1,3410.8,2.3599]
[1721255463770,0.61058959,3411.1,3410.8,3.2407075]
[1721255465860,0.61058959,3411.1,3411.0,2.93169]
[1721255466294,0.61058959,3411.2,3411.0,2.93169]
[1721255469162,0.61058959,3411.2,3410.8,3.2407075]
[1721255469367,0.61058959,3411.0,3410.8,2.3599]
[1721255469766,0.61058959,3411.0,3410.8,5.29176]
[1721255470106,0.61058959,3411.1,3410.8,5.29176]
[1721255470963,0.61058959,3411.2,3411.0,2.93169]
[1721255471202,0.61058959,3411.2,3411.0,3.8124535]
[1721255471497,0.61058959,3411.2,3411.0,0.8807635]
[1721255471704,0.61058959,3411.2,3410.8,5.29176]
[1721255471889,0.61058959,3411.1,3410.8,5.29176]
[1721255473465,0.61058959,3411.1,3410.8,2.3599]
[1721255473662,0.61058959,3411.1,3410.4,5.36197]
[1721255473900,0.61058959,3410.7,3410.4,2.4298]
[1721255474078,0.91588439,3410.8,3410.4,2.4298]
[1721255474079,0.61058959,3410.6,3410.5,2.93211]
[1721255474591,3.54261959,3410.6,3410.0,2.4298]
[1721255474800,3.54261959,3410.6,3409.6,2.93287]
[1721255474801,0.61058959,3410.5,3409.7,2.4298]
[1721255475015,3.30348439,3410.6,3409.6,2.93287]
[1721255475016,0.61058959,3410.1,3409.6,2.93287]
[1721255475983,0.61058959,3410.0,3409.6,2.93287]
[1721255476173,0.61058959,3410.0,3409.6,3.762442]
[1721255476375,0.61058959,3410.1,3409.6,3.762442]
[1721255476690,0.61058959,3410.1,3409.6,2.93287]
[1721255477382,3.54294959,3410.3,3409.6,2.93287]
[1721255478405,3.54294959,3410.3,3409.7,2.93279]
[1721255478715,0.61058959,3410.3,3409.7,2.93279]
[1721255479322,0.61058959,3410.4,3409.7,2.93279]
[1721255480091,0.61058959,3410.4,3409.8,2.93272]
[1721255481022,3.54280959,3410.4,3409.8,2.93272]
[1721255481389,0.61058959,3410.3,3409.8,2.93272]
[1721255481618,3.54289959,3410.3,3409.4,2.4298]
[1721255481824,2.93279,3409.8,3408.9,5.39283]
[1721255482022,2.93279,3409.8,3408.5,2.4594]
[1721255482023,3.61058959,3409.7,3408.5,2.4594]
[1721255482187,2.93315,3409.3,3408.5,2.4594]
[1721255482709,2.93315,3409.3,3408.6,2.93373]
[1721255485417,2.9329,3409.6,3408.7,2.93365]
[1721255486017,2.9329,3409.6,3408.5,5.39316]
[1721255486018,2.93314,3409.4,3408.5,5.39316]
[1721255486222,2.93324,3409.2,3408.3,2.934]
[1721255486429,2.93324,3409.2,3408.2,2.93409]
[1721255486849,2.93334,3409.1,3408.1,2.3826]
[1721255486998,2.93359,3408.8,3408.0,2.93425]
[1721255487404,2.93375,3408.6,3407.8,2.93444]
[1721255487862,2.93375,3408.6,3407.9,2.93435]
[1721255488005,2.93375,3408.6,3407.7,5.3171]
[1721255488341,2.93375,3408.6,3407.8,2.93443]
[1721255489434,2.93384,3408.5,3407.6,2.93461]
[1721255489739,2.93402,3408.3,3407.6,2.93461]
[1721255491385,2.93347,3409.0,3407.2,2.4223]
[1721255491386,2.93351,3408.9,3407.8,2.93444]
[1721255491598,2.93351,3408.9,3407.7,0.586938]
[1721255491599,3.0,3409.0,3407.9,2.93428]
[1721255491727,2.93365,3408.8,3407.9,2.93428]
[1721255491926,3.0,3408.7,3407.9,2.93428]
[1721255492661,2.93372,3408.7,3407.9,2.93428]
[1721255493069,2.43372,3408.7,3407.9,3.521158]
[1721255494070,2.43372,3408.7,3408.0,2.93426]
[1721255495043,2.93376,3408.6,3408.0,2.93426]
[1721255495987,5.93358,3408.8,3407.5,2.2865]
[1721255495988,3.0,3408.8,3407.5,2.2865]
[1721255496184,3.0,3409.1,3408.2,2.93402]
[1721255496360,2.93341,3409.0,3408.2,2.93402]
[1721255496567,3.0,3408.9,3408.2,2.93402]
[1721255498903,2.93406,3408.3,3407.6,0.22865]
[1721255499056,2.93406,3408.3,3407.5,5.22117]
[1721255499251,2.93406,3408.3,3407.6,2.93461]
[1721255500087,2.93384,3408.5,3407.7,2.93453]
[1721255500457,2.93393,3408.4,3407.7,2.93453]
[1721255500650,2.93393,3408.4,3407.7,3.521452]
[1721255502461,10.24361,3408.8,3407.8,5.25971]
[1721255502802,5.93367,3408.7,3408.0,2.93421]
[1721255503102,3.0,3408.7,3408.0,2.93421]
[1721255503266,3.0,3408.7,3408.1,2.93418]
[1721255504097,3.0,3408.7,3408.2,2.93409]
[1721255505010,7.31,3408.8,3408.3,2.93399]
[1721255505207,7.31,3409.2,3408.4,2.93386]
[1721255505388,7.31,3409.2,3408.5,3.520625]
[1721255505735,10.24324,3409.2,3408.5,3.520625]
[1721255505897,2.93333,3409.1,3408.5,3.520625]
[1721255506295,7.31,3409.2,3408.5,3.520575]
[1721255506594,7.31,3409.2,3408.5,2.93378]
[1721255506595,3.0,3409.1,3408.5,2.93378]
[1721255506792,3.0,3409.1,3408.6,2.93373]
[1721255508021,3.0,3409.1,3408.6,5.26553]
[1721255508380,3.0,3409.1,3408.7,2.93365]
[1721255509018,7.31,3409.5,3408.6,2.3318]
[1721255509202,2.93282,3409.7,3409.0,2.93333]
[1721255509577,12.53594,3409.9,3409.0,2.93333]
[1721255509778,2.93273,3409.8,3409.0,2.93333]
[1721255510313,2.93273,3409.8,3409.1,2.93331]
[1721255510521,3.0,3409.7,3409.1,2.93331]
[1721255510719,3.0,3409.7,3408.7,0.23318]
[1721255510923,2.2933,3409.9,3408.7,2.93366]
[1721255510924,2.93314,3409.4,3408.7,2.93366]
[1721255511118,2.93314,3409.4,3408.3,2.93399]
[1721255511119,2.93316,3409.3,3408.3,2.93399]
[1721255511310,2.93316,3409.3,3408.2,2.6635]
[1721255511311,2.93316,3409.3,3408.6,2.93374]
[1721255512382,2.93304,3409.5,3408.7,2.93366]
[1721255512595,2.93304,3409.5,3408.7,3.5204]
[1721255512819,2.93307,3409.4,3408.7,3.5204]
[1721255513019,2.93315,3409.3,3408.7,3.5204]
[1721255514512,2.93315,3409.3,3408.7,0.58674]
[1721255515621,2.93306,3409.4,3408.7,3.5204]
[1721255515922,2.93317,3409.3,3408.8,0.35204]
[1721255516088,2.93317,3409.3,3408.7,3.5204]
[1721255518337,3.54350959,3409.6,3408.7,3.5204]
[1721255518491,0.61058959,3409.6,3409.0,2.93338]
[1721255518692,3.84861439,3409.8,3409.1,0.54287466]
[1721255518693,0.61058959,3409.8,3409.1,0.54287466]
[1721255518937,0.61058959,3409.9,3409.2,2.93317]
[1721255519105,3.54313959,3410.0,3409.2,2.93317]
[1721255519451,0.61058959,3410.0,3409.3,2.4367]
[1721255519741,0.61058959,3410.2,3409.8,2.93271]
[1721255519983,0.61058959,3410.2,3409.3,2.4367]
[1721255520252,1.8894018,3410.1,3409.5,2.93298]
[1721255520392,0.61058959,3410.2,3409.6,2.93282]
[1721255521008,11.15810439,3410.4,3409.6,2.93282]
[1721255521009,0.61058959,3410.3,3409.6,2.93282]
[1721255521220,0.61058959,3410.3,3409.5,2.93298]
[1721255521221,0.61058959,3410.3,3409.7,2.93278]
[1721255521400,0.61058959,3410.3,3409.8,2.93271]
[1721255521609,0.61058959,3410.3,3409.8,3.519259]
[1721255522348,0.61058959,3410.4,3410.0,5.28373]
[1721255522651,0.61058959,3410.5,3410.0,5.28373]
[1721255523307,0.61058959,3410.5,3410.0,6.1640349]
[1721255523510,0.61058959,3410.7,3410.0,3.2315049]
[1721255523700,0.61058959,3410.9,3410.5,2.93211]
[1721255523900,0.61058959,3411.0,3410.5,2.93211]
[1721255524096,0.91588439,3411.1,3410.5,2.93211]
[1721255524097,0.61058959,3411.1,3410.5,2.93211]
[1721255524413,0.61058959,3411.2,3410.7,2.93189]
[1721255524897,0.61058959,3411.1,3410.7,2.93189]
[1721255525451,0.61058959,3411.2,3410.7,2.93189]
[1721255525739,0.61058959,3411.2,3410.8,2.93184]
[1721255525946,0.61058959,3411.2,3410.9,2.93176]
[1721255526263,0.61058959,3411.3,3410.9,2.93176]
[1721255526605,0.61058959,3411.4,3410.9,2.93176]
[1721255526960,0.61058959,3411.4,3410.8,5.21045]
[1721255526961,1.8889618,3411.3,3410.8,5.21045]
[1721255527103,0.61058959,3411.2,3410.8,5.21045]
[1721255527307,0.61058959,3411.3,3410.8,5.21045]
[1721255527529,0.61058959,3411.3,3410.7,0.5864]
[1721255527739,0.61058959,3411.3,3410.6,2.93202]
[1721255528307,0.61058959,3411.3,3410.7,2.93194]
[1721255528624,0.61058959,3411.3,3410.5,2.93208]
[1721255529513,3.54193959,3411.4,3410.6,2.93202]
[1721255529714,3.54193959,3411.4,3410.7,2.93194]
[1721255529920,0.61058959,3411.4,3410.7,3.750283]
[1721255530153,3.54194959,3411.4,3410.4,2.3193]
[1721255530440,3.54194959,3411.4,3410.6,2.93202]
[1721255530653,3.54194959,3411.4,3410.7,2.93194]
[1721255531005,3.54194959,3411.4,3410.4,2.3193]
[1721255531006,2.9317,3411.0,3410.4,2.3193]
[1721255531407,2.93152,3411.2,3410.5,2.9321]
[1721255531609,2.93161,3411.1,3410.4,2.3193]
[1721255533059,3.54202959,3411.3,3410.4,2.3193]
[1721255533215,2.3194,3411.1,3410.0,2.3426]
[1721255533414,2.932,3410.7,3410.0,2.3426]
[1721255533751,2.93246,3410.1,3409.2,5.27577]
[1721255533952,2.93257,3410.0,3409.2,2.3426]
[1721255534112,2.93257,3410.0,3409.2,3.163542]
[1721255534551,2.93263,3409.9,3409.2,6.096762]
[1721255534750,2.93246,3410.1,3409.3,2.93314]
[1721255534952,2.93255,3410.0,3409.3,2.93314]
[1721255535659,5.80659959,3410.3,3409.5,2.93296]
[1721255535660,3.54294959,3410.3,3409.5,2.93296]
[1721255535962,3.0,3410.2,3409.6,0.47893169]
[1721255536842,3.0,3410.2,3409.6,3.41181169]
[1721255537424,5.93222,3410.4,3409.6,3.41181169]
[1721255537733,3.0,3410.4,3409.6,3.41181169]
[1721255537926,3.0,3410.4,3409.7,3.56727517]
[1721255538127,5.93221,3410.4,3409.7,3.56727517]
[1721255538822,3.0,3410.4,3409.7,3.56727517]
[1721255539030,2.93221,3410.4,3409.7,3.56727517]
[1721255539226,2.93221,3410.4,3409.7,2.93279]
[1721255540163,5.93215,3410.5,3409.7,2.93279]
[1721255540873,2.93222,3410.4,3409.7,2.93279]
[1721255541734,3.61058959,3410.5,3409.7,2.93279]
[1721255542043,1.21861771,3410.9,3410.0,2.93255]
[1721255542044,0.61058959,3410.6,3410.0,2.93255]
[1721255542362,0.61058959,3410.7,3410.0,2.93255]
[1721255543256,3.54254959,3410.7,3410.0,2.93255]
[1721255543445,3.54254959,3410.7,3409.9,2.6884]
[1721255543446,0.61058959,3410.5,3409.9,2.6884]
[1721255543640,3.91588439,3410.6,3409.9,2.6884]
[1721255543641,0.61058959,3410.4,3409.9,2.6884]
[1721255543835,0.61058959,3410.5,3409.9,2.6884]
[1721255545865,18.0787324,3410.0,3409.9,0.18000001]
[1721255546382,19.90787172,3410.0,3409.9,0.18000001]
[1721255546594,2.9335,3408.9,3408.2,2.93405]
[1721255547975,2.93359,3408.8,3408.1,2.2574]
[1721255548292,2.93412,3408.2,3407.6,2.3836]
[1721255548680,2.93412,3408.2,3407.4,2.93476]
[1721255548882,3.54386312,3408.2,3407.4,2.93476]
[1721255550598,0.60974312,3408.3,3407.4,3.760093]
[1721255550767,5.93402,3408.3,3407.4,3.760093]
[1721255551168,2.9341,3408.2,3407.4,3.760093]
[1721255551687,3.0,3408.3,3407.4,3.760093]
[1721255551890,3.0,3408.3,3407.5,2.93467]
[1721255552062,2.93411,3408.2,3407.5,2.93467]
[1721255552492,2.93411,3408.2,3407.5,3.6041663]
[1721255554593,2.93411,3408.2,3407.5,0.6694963]
[1721255554788,2.93411,3408.2,3407.3,2.93486]
[1721255554989,2.93411,3408.2,3407.2,2.93495]
[1721255555162,2.9342,3408.1,3407.1,2.3836]
[1721255555596,2.93446,3407.8,3407.1,5.31862]
[1721255555799,2.93446,3407.8,3407.1,5.850482]
[1721255556323,2.9342,3408.1,3407.3,2.93486]
[1721255557010,2.93427,3408.0,3407.1,5.850482]
[1721255557169,2.93427,3408.0,3407.2,2.93495]
[1721255557364,2.93439,3407.9,3407.2,2.93495]
[1721255558168,2.98784312,3408.5,3407.4,2.93472]
[1721255558169,2.93393,3408.4,3407.4,2.93472]
[1721255558421,5.93402,3408.3,3407.5,2.93469]
[1721255558775,2.93411,3408.2,3407.5,2.93469]
[1721255559409,2.93411,3408.2,3407.5,3.521653]
[1721255559611,0.60974312,3408.8,3407.6,0.05868963]
[1721255559913,2.93367,3408.7,3407.9,2.93429]
[1721255560096,3.0,3408.6,3407.9,5.86857]
[1721255560411,3.0,3408.6,3408.0,2.93426]
[1721255561075,2.93351,3408.9,3408.0,3.521114]
[1721255561612,2.93358,3408.8,3408.0,3.521114]
[1721255561820,0.60974312,3409.4,3408.2,2.3286]
[1721255561973,2.93307,3409.4,3408.4,2.93392]
[1721255562619,2.93318,3409.3,3408.5,2.93383]
[1721255562817,2.93318,3409.3,3408.5,3.753482]
[1721255563196,3.98774312,3409.8,3408.7,2.93365]
[1721255563401,2.93313,3409.4,3408.5,2.93383]
[1721255563600,2.93313,3409.4,3408.7,2.93364]
[1721255563924,3.0,3409.3,3408.7,2.93364]
[1721255565512,0.60974312,3409.8,3408.8,2.93354]
[1721255565717,0.60974312,3410.1,3408.8,2.93354]
[1721255565913,0.60974312,3410.1,3408.9,2.3805]
[1721255566123,2.93257,3410.0,3408.9,2.3805]
[1721255566331,2.93265,3409.9,3409.1,2.93332]
[1721255566848,2.9328,3409.8,3408.9,5.31394]
[1721255567225,2.93265,3409.9,3408.9,5.31394]
[1721255567416,5.93272,3409.8,3409.0,2.93336]
[1721255567838,2.93282,3409.7,3408.9,2.3805]
[1721255568039,2.93299,3409.5,3408.9,2.3805]
[1721255568671,2.93318,3409.3,3408.6,2.4695]
[1721255568871,2.93338,3409.1,3408.3,2.93395]
[1721255569013,2.93338,3409.1,3408.4,2.93391]
[1721255569662,2.93338,3409.1,3408.3,0.8924544]
[1721255569955,2.93341,3409.0,3408.3,3.8263944]
[1721255570360,2.93341,3409.0,3408.2,2.4695]
[1721255570557,2.93341,3409.0,3408.2,5.40359]
[1721255571260,0.60974312,3409.4,3407.8,2.93438]
[1721255571470,2.93402,3408.3,3407.7,2.3968]
[1721255571681,2.9342,3408.1,3407.3,2.93487]
[1721255571859,2.3817,3408.7,3407.2,2.4666]
[1721255571860,2.93443,3407.9,3407.2,2.4666]
[1721255572026,2.93441,3407.9,3407.2,2.4666]
[1721255572225,2.93441,3407.9,3407.2,5.40153]
[1721255572987,2.93403,3408.3,3407.2,6.235202]
[1721255573280,5.93412,3408.2,3407.5,2.93468]
[1721255573784,3.0,3408.2,3407.5,2.93468]
[1721255573946,3.0,3408.2,3407.6,2.93461]
[1721255576255,5.93412,3408.2,3407.4,2.93473]
[1721255576460,5.9341,3408.2,3407.2,2.4666]
[1721255576648,5.9341,3408.2,3407.3,2.93485]
[1721255577051,2.93436,3407.9,3407.2,2.4666]
[1721255577280,2.93445,3407.8,3407.2,2.4666]
[1721255577584,2.93454,3407.7,3406.9,2.9352]
[1721255577782,2.93462,3407.6,3406.9,2.9352]
[1721255578749,2.93462,3407.6,3406.8,5.36583]
[1721255578955,2.93462,3407.6,3406.9,2.93521]
[1721255581304,2.93462,3407.6,3406.8,2.4306]
[1721255581831,2.93462,3407.6,3406.8,5.36589]
[1721255581983,2.93446,3407.8,3406.9,2.93521]
[1721255582183,0.60974312,3407.9,3406.8,3.260751]
[1721255582493,5.93435,3407.9,3407.1,2.93498]
[1721255582694,2.93444,3407.8,3407.1,2.93498]
[1721255583281,2.93433,3408.0,3407.1,2.93498]
[1721255583515,3.0,3407.9,3407.1,2.93498]
[1721255583684,5.93437,3407.9,3407.1,2.93498]
[1721255583886,5.93437,3407.9,3407.2,0.642019]
[1721255584101,5.93437,3407.9,3407.2,3.576969]
[1721255584712,6.54411312,3407.9,3407.2,3.576969]
[1721255584910,6.54411312,3407.9,3407.2,2.93495]
[1721255584911,5.93437,3407.9,3407.2,2.93495]
[1721255586248,5.93437,3407.9,3407.0,5.8702]
[1721255586542,2.93445,3407.8,3407.0,2.93507]
[1721255587305,2.93445,3407.8,3407.1,2.93496]
[1721255587534,3.60974312,3407.9,3407.2,2.93495]
[1721255587760,3.60974312,3407.9,3407.1,0.885063]
[1721255587761,6.54410312,3407.9,3407.1,0.885063]
[1721255587915,4.82387795,3407.8,3407.0,2.93507]
[1721255588120,3.54419312,3407.8,3407.0,2.93507]
[1721255588317,3.54419312,3407.8,3407.1,2.93502]
[1721255588736,0.60974312,3407.7,3407.1,2.93502]
[1721255589040,3.54419312,3407.8,3407.1,2.93502]
[1721255589257,3.54419312,3407.8,3407.1,3.820089]
[1721255589418,1.27967455,3407.7,3407.1,3.820089]
[1721255589604,0.60974312,3407.7,3407.1,3.820089]
[1721255590044,0.60974312,3407.8,3407.2,2.4238]
[1721255590230,2.93398,3408.4,3407.5,2.93463]
[1721255590231,0.60974312,3408.2,3407.5,2.93463]
[1721255590543,0.60974312,3408.1,3407.6,2.9346]
[1721255591334,0.60974312,3408.1,3407.6,2.99328648]
[1721255592141,0.60974312,3408.1,3407.8,2.93442]
[1721255592347,0.60974312,3408.2,3407.9,2.619242]
[1721255592653,0.60974312,3408.3,3407.9,2.619242]
[1721255593077,0.60974312,3408.3,3408.1,2.93418]
[1721255593362,0.10974312,3408.3,3408.1,2.93418]
[1721255593568,0.10974312,3408.3,3408.2,0.5553422]
[1721255593735,0.91461468,3408.7,3408.2,3.4894422]
[1721255594264,0.91461468,3408.8,3408.2,3.4894422]
[1721255594638,0.91461468,3408.9,3408.3,2.934]
[1721255594962,0.91461468,3408.9,3408.2,0.614018]
[1721255594963,0.91461468,3408.9,3408.2,0.5553422]
[1721255595160,0.91461468,3408.7,3408.2,0.5553422]
[1721255595339,2.19383641,3408.6,3408.3,0.34895222]
[1721255595539,1.21948624,3408.8,3408.3,0.34895222]
[1721255595540,0.91461468,3408.7,3408.3,0.34895222]
[1721255595739,0.91461468,3408.8,3408.3,0.34895222]
[1721255595942,1.27926591,3408.7,3408.3,0.34895222]
[1721255596424,0.91461468,3408.8,3408.3,0.34895222]
[1721255596625,0.91461468,3408.8,3408.4,0.67725444]
[1721255596826,0.91461468,3408.9,3408.4,0.67725444]
[1721255597027,0.91461468,3408.9,3408.4,2.93392]
[1721255597327,1.27925344,3408.8,3408.4,2.93392]
[1721255597526,0.91461468,3408.9,3408.4,2.93392]
[1721255597725,2.19388249,3408.8,3408.3,0.34895222]
[1721255598039,0.91461468,3408.8,3408.3,3.28295222]
[1721255598240,0.91461468,3408.9,3408.4,0.62171222]
[1721255599252,2.1938826,3408.8,3408.4,0.62171222]
[1721255599455,0.91461468,3408.9,3408.3,2.934]
[1721255600660,0.91461468,3408.9,3408.1,2.93418]
[1721255600967,2.19390996,3408.8,3408.2,2.93409]
[1721255601169,0.91461468,3408.8,3408.3,2.934]
[1721255601371,0.91461468,3408.8,3408.3,3.520826]
[1721255601555,0.91461468,3408.8,3408.3,0.586826]
[1721255602271,0.91461468,3408.8,3407.9,5.553572]
[1721255602455,0.91461468,3408.8,3407.9,2.93433]
[1721255602456,0.91461468,3408.5,3407.9,2.93433]
[1721255602849,0.91461468,3408.4,3407.9,2.93433]
[1721255603440,0.6092573,3408.3,3407.9,2.93433]
[1721255603860,0.6092573,3408.4,3407.9,2.93433]
[1721255604051,0.6092573,3408.3,3407.9,2.93433]
[1721255604257,0.6092573,3408.3,3407.9,3.521214]
[1721255604651,0.6092573,3408.3,3408.0,2.93425]
[1721255604848,0.6092573,3408.3,3408.1,5.92468]
[1721255605047,0.6092573,3408.6,3408.3,2.93401]
[1721255605298,0.6092573,3408.6,3408.1,5.92466]
[1721255605467,0.6092573,3408.3,3408.1,5.37466]
[1721255605661,0.6092573,3408.2,3408.1,5.9708144]
[1721255605864,0.6092573,3408.3,3408.2,2.9341]
[1721255606178,0.6092573,3408.4,3408.2,2.9341]
[1721255606684,0.6092573,3408.5,3408.2,2.9341]
[1721255608248,0.6092573,3408.5,3408.3,2.93401]
[1721255608453,0.6092573,3408.6,3408.4,3.82440244]
[1721255609075,0.6092573,3408.7,3408.4,3.82440244]
[1721255609274,0.6092573,3408.7,3408.6,8.1276]
[1721255609450,1.52328291,3409.2,3408.9,2.93349]
[1721255609451,0.6092573,3409.1,3408.9,2.93349]
[1721255609655,0.6092573,3409.1,3408.7,2.93366]
[1721255609872,0.6092573,3409.0,3408.8,3.48352]
[1721255610096,0.6092573,3409.0,3408.9,3.35076409]
[1721255610390,0.60938572,3409.0,3408.9,3.35076409]
[1721255611454,0.60938572,3409.1,3408.9,3.35076409]
[1721255611794,0.91461468,3409.2,3408.9,3.35076409]
[1721255611795,0.60938572,3409.0,3408.9,3.35076409]
[1721255612378,0.60938572,3409.1,3408.9,3.35076409]
[1721255612695,0.60938572,3409.1,3409.0,0.68343341]
[1721255615313,0.60941854,3409.4,3409.0,2.9334]
[1721255615884,0.60941854,3409.3,3408.9,0.41727409]
[1721255616088,0.60941854,3409.3,3408.8,2.9297]
[1721255616089,0.60941854,3409.3,3408.8,2.3797]
[1721255616464,0.60941854,3409.2,3408.8,2.3797]
[1721255616669,0.60941854,3409.3,3408.8,2.3797]
[1721255619177,0.60941854,3409.3,3408.8,5.31326]
[1721255619697,0.60941854,3409.4,3408.8,5.31326]
[1721255619883,0.60941854,3409.4,3408.9,2.93348]
[1721255621019,0.60941854,3409.4,3408.8,3.224392]
[1721255621304,0.60941854,3409.4,3408.5,3.13381]
[1721255621305,0.60941854,3409.1,3408.5,0.2]
[1721255621508,3.54313023,3408.7,3408.5,0.2]
[1721255621713,10.026328,3408.6,3408.5,0.2]
[1721255622013,15.57745109,3408.6,3408.5,0.18000001]
[1721255622213,11.82948147,3408.6,3408.5,0.18000001]
[1721255622506,15.57649021,3408.6,3408.5,0.18000001]
[1721255622667,13.74895183,3408.6,3408.5,0.18000001]
[1721255622872,15.5764563,3408.6,3408.5,0.18000001]
[1721255624125,13.74895183,3408.6,3408.5,0.18000001]
[1721255625630,13.74894551,3408.6,3408.5,0.18000001]